Cogmind - Beta 11.1 @@@ ROGUE MODE // 2022.10.07 @ 15:27:41 Player: Andru7428 Result: Destroyed by D-53 Grenadier with Mini Grenade Launcher Performance ------------- Evolutions (0) 0 Regions Visited (2) 400 Robots Destroyed (20) 100 Value Destroyed (302) 302 Prototype IDs (6) 120 Alien Tech Used (0) 0 Bonus (4) 4 TOTAL SCORE: 926 Bonus ------- High Alert Combat Kills 4 Cogmind --------- Core Integrity 0/250 Matter 287/300 Energy 64/100 System Corruption 1% Temperature Cool (0) Movement Treading (160) Location -10/Mines Parts ------- > --- POWER (1) -------- (None) > --- PROPULSION (2) --- Light Treads > --- UTILITY (2) ------ Medium Storage Unit > --- WEAPON (2) ------- Assault Rifle > --- INVENTORY (10) --- Ion Engine Light Treads Wheel Structural Scanner Tractor Beam Grenade Launcher Enhanced Flamer Maul Peak State ------------ > --- POWER ------------ Ion Engine > --- PROPULSION ------- Aluminum Leg Wheel > --- UTILITY ---------- Heat Sink Small Storage Unit > --- WEAPON ----------- EM Shotgun EM Shotgun > --- INVENTORY -------- Ion Engine Light Treads Light Treads Tractor Beam EM Shotgun EM Shotgun Medium Laser Small Laser [Rating: 10] Favorites ----------- Power Ion Engine Engine Ion Engine Propulsion Aluminum Leg Treads Light Treads Leg Aluminum Leg Wheel Wheel Utility Medium Storage Unit Device Heat Sink Storage Medium Storage Unit Protection Light Armor Plating Weapon EM Shotgun Energy Gun EM Shotgun Ballistic Gun Assault Rifle Launcher Grenade Launcher Build | -11 -10 -10 ------- Run | Scr Mat Min Slots Evolved . | . . . Power . | . . . Propulsion . | . . . Utility . | . . . Weapon . | . . . Parts Attached 20 | 7 6 7 Power 2 | 1 . 1 Engine 2 | 1 . 1 Core . | . . . Reactor . | . . . Propulsion 5 | 3 1 1 Treads 2 | 1 . 1 Leg 2 | 2 . . Wheel 1 | . 1 . Hover . | . . . Flight . | . . . Utility 4 | 1 3 . Device 1 | . 1 . Storage 2 | 1 1 . Processor . | . . . Hackware . | . . . Protection 1 | . 1 . Artifact . | . . . Weapon 9 | 2 2 5 Energy Gun 7 | 2 2 3 Energy Cannon . | . . . Ballistic Gun 1 | . . 1 Ballistic Cannon . | . . . Launcher 1 | . . 1 Special Weapon . | . . . Impact Weapon . | . . . Slashing Weapon . | . . . Piercing Weapon . | . . . Special Melee Weapon . | . . . Unidentified Prototypes . | . . . Parts Lost 8 | . 1 7 Power 1 | . . 1 Propulsion 2 | . 1 1 Utility 1 | . . 1 Weapon 4 | . . 4 Highest Loss Streak 6 | . 1 6 To Critical Strikes . | . . . Average Slot Usage (%) 97 | . 97 97 Engine 13 | . 14 13 Leg 15 | . 15 13 Wheel 12 | . 12 13 Device 3 | . 3 . Storage 14 | . 14 14 Protection 8 | . 7 13 Energy Gun 27 | . 28 25 Naked Turns . | . . . Heaviest Build 24 | 14 24 24 Greatest Support 20 | 20 20 10 Greatest Overweight (x) 4 | 4 2 2 Average Overweight (x) 1 | . 1 2 Largest Inventory Capacity 10 | 8 10 10 Average Capacity 9 | 7 9 10 Most Carried 10 | 6 10 10 Average Carried 7 | 3 7 9 Final Capacity 10 | 8 10 10 Final Carried 10 | 6 10 8 Class Distribution -------------------- 100% | Mutant Dominant Class ---------------- Mutant | -10/Materials Mutant | -10/Mines Resources | -11 -10 -10 ----------- Run | Scr Mat Min Matter Collected 443 | 208 127 108 Remotely . | . . . Salvage Created 612 | . 459 153 Parts 39 | . 36 3 Haulers Intercepted 2 | . 2 . Recyclers Shooed . | . . . Parts Field Recycled . | . . . Retrieved Matter . | . . . Parts Self-Destructed . | . . . Prevented . | . . . Kills | -11 -10 -10 ------- Run | Scr Mat Min Combat Hostiles Destroyed 27 | . 10 17 Guns 10 | . 8 2 AOE 17 | . 2 15 Classes Destroyed 8 | . 7 1 Hauler 2 | . 2 . Recycler 1 | . 1 . Mechanic 1 | . 1 . Operator 1 | . 1 . Watcher 3 | . 3 . Swarmer 9 | . 9 . Grunt 3 | . 1 2 Assembled 15 | . . 15 Best Kill Streak 14 | . 4 14 Combat Bots Only 14 | . 3 14 Max Kills in Single Turn 4 | . 3 4 Gunslinging . | . . . Exploded 4 | . 2 4 Melee . | . . . Uniques/NPCs Destroyed . | . . . Combat | -11 -10 -10 -------- Run | Scr Mat Min Damage Taken 1101 | . 425 676 Core 254 | . 73 181 Absorbed by Shields . | . . . Core Remaining (%) 100 | 100 . . Volleys Fired 49 | . 33 16 Largest 2 | . 2 2 Hottest 100 | . 100 90 Shots Fired 91 | . 66 25 Gun 85 | . 66 19 Cannon . | . . . Launcher 6 | . . 6 Special . | . . . Kinetic 1 | . . 1 Thermal 20 | . 20 . Explosive 6 | . . 6 Electromagnetic 64 | . 46 18 Robot Hit Streak 13 | . 6 13 Robot Miss Streak 4 | . 4 3 Penetration Max . | . . . Secondary Targets . | . . . Shots Hit Robots 62 | . 44 18 Core Hits 65 | . 23 42 Critical Kills . | . . . Critical Parts Destroyed . | . . . Critical Strikes . | . . . Melee Attacks . | . . . Impact . | . . . Slashing . | . . . Piercing . | . . . Sneak Attacks . | . . . Combat Hostiles . | . . . Follow-up Attacks . | . . . Damage Inflicted 1950 | . 897 1053 Guns 777 | . 612 165 Cannons . | . . . Explosions 1173 | . 285 888 Melee . | . . . Ramming . | . . . Kinetic . | . . . Thermal 531 | . 424 107 Explosive 781 | . . 781 Electromagnetic 638 | . 473 165 Impact . | . . . Slashing . | . . . Piercing . | . . . Highest Corruption 1 | . 1 1 Average Corruption 1 | . 1 1 Corruption Purged . | . . . Corruption Blocked . | . . . Effects 7 | . 4 3 Message Errors 2 | . 1 1 Matter Fused 2 | . 1 1 Heat Flow Errors 1 | . 1 . Data Loss (minor) 1 | . 1 . Misfires 1 | . . 1 Overload Shots . | . . . Overflow Damage 158 | . 125 33 Projectiles . | . . . Explosions 158 | . 125 33 Melee . | . . . Knockbacks . | . . . Impact . | . . . Kinetic . | . . . Secondary . | . . . Self-Inflicted Damage 191 | . 157 34 Shots 4 | . 3 1 Rammed . | . . . Targets Rammed . | . . . Kicked . | . . . Crushed . | . . . Highest Temperature 234 | . 234 156 Average Temperature 78 | . 85 57 Received Heat Transfer 30 | . 30 . Siege Activations . | . . . Robots Corrupted . | . . . Combat Hostiles . | . . . Parts Fried 4 | . 4 . Impact Corruptions . | . . . Robots Melted . | . . . Combat Hostiles . | . . . Parts Melted . | . . . Heat Transferred 707 | . 607 100 Parts Sabotaged . | . . . Parts Stolen . | . . . Parts Stripped . | . . . Power Chain Reactions 3 | . 2 1 Missiles Intercepted . | . . . Alert | -11 -10 -10 ------- Run | Scr Mat Min Peak Influence 504 | . 504 83 Initial . | . . . Average 107 | . 126 63 Maximum Alert Level 2 | . 2 . Low Security (%) 83 | 100 78 100 Level 1 11 | . 15 . Level 2 4 | . 5 . Level 3 . | . . . Level 4 . | . . . Level 5 . | . . . High Security . | . . . Max Security . | . . . Squads Dispatched 2 | . 2 . Investigation 1 | . 1 . Extermination . | . . . Reinforcement 1 | . 1 . Assault . | . . . Garrison . | . . . Intercept . | . . . Searches Triggered . | . . . Construction Impeded . | . . . Haulers Reinforced . | . . . Active Scanning Responses . | . . . Cargo Convoy Interrupts . | . . . Stealth | -11 -10 -10 --------- Run | Scr Mat Min Distress Signals 4 | . 4 . Communications Jammed . | . . . Distress Signals . | . . . Times Spotted 38 | . 19 19 Peak Tracking Total 13 | . 5 13 Tactical Retreats 4 | . 2 2 Traps | -11 -10 -10 ------- Run | Scr Mat Min Traps Triggered 1 | . 1 . Indirectly . | . . . Trap Hack Attempts . | . . . Triggered . | . . . Disarmed . | . . . Reprogrammed . | . . . Reused . | . . . Traps Extracted . | . . . Installed . | . . . Triggered . | . . . Most Traps Carried 1 | . . 1 Machines | -11 -10 -10 ---------- Run | Scr Mat Min Machines Disabled 1 | . 1 . Max in Single Turn 1 | . 1 . Machines Sabotaged . | . . . Garrisons Compromised . | . . . Overloaded Fab Kills . | . . . Hacking | -11 -10 -10 --------- Run | Scr Mat Min Machines Accessed 9 | . 9 . Terminals 8 | . 8 . Fabricators . | . . . Repair Stations . | . . . Recycling Units 1 | . 1 . Scanalyzers . | . . . Garrison Access . | . . . Total Hacks 36 | . 36 . Successful 23 | . 23 . Failed 12 | . 12 . Catastrophic 1 | . 1 . Database Lockouts 1 | . 1 . Manual 21 | . 21 . Terminals 34 | . 34 . Fabricators . | . . . Repair Stations . | . . . Recycling Units 2 | . 2 . Scanalyzers . | . . . Garrison Access . | . . . Terminal Hacks 13 | . 13 . Record 1 | . 1 . Robot Analysis 1 | . 1 . Prototype ID Bank 3 | . 3 . Terminal Index 1 | . 1 . Unreport Threat 2 | . 2 . Locate Traps 1 | . 1 . Recall Investigation 1 | . 1 . Hauler Manifests 2 | . 2 . Registered Components 1 | . 1 . Fabricator Hacks . | . . . Repair Station Hacks . | . . . Recycling Unit Hacks . | . . . Scanalyzer . | . . . Garrison Access Hacks . | . . . Unauthorized Hacks 10 | . 10 . Terminals 9 | . 9 . Track 1 | . 1 . Assimilate 2 | . 2 . Botnet 5 | . 5 . Operators 1 | . 1 . Fabricators . | . . . Repair Stations . | . . . Recycling Units 1 | . 1 . Tunnel 1 | . 1 . Scanalyzers . | . . . Garrison Access . | . . . Data Cores Recovered . | . . . Used . | . . . Hacking Detections 6 | . 6 . Full Trace Events 1 | . 1 . Feedback Events . | . . . Feedback Blocked . | . . . Robot Schematics Acquired . | . . . Robots Built . | . . . Authchips . | . . . Time . | . . . Total Robot Build Rating . | . . . Part Schematics Acquired . | . . . Parts Built . | . . . Authchips . | . . . Time . | . . . Total Part Build Rating . | . . . Parts Repaired . | . . . Time . | . . . Parts Recycled . | . . . Recycled Matter . | . . . Retrieved Matter . | . . . Retrieved Components . | . . . Parts Scanalyzed . | . . . Part Schematics Acquired . | . . . Parts Damaged . | . . . Bothacking | -11 -10 -10 ------------ Run | Scr Mat Min Used RIF Installer . | . . . Robots Hacked . | . . . Non-combat . | . . . Combat . | . . . Robot Hacks Applied . | . . . Relay Couplers Released . | . . . Fabnet Peak Effective % . | . . . Robots Rewired . | . . . Allies Hacked . | . . . Hacks Repelled . | . . . Allies | -11 -10 -10 -------- Run | Scr Mat Min Total Allies 3 | . 1 2 Largest Group 3 | . 1 3 Highest-Rated Group 52 | . 10 52 Highest-Rated Ally 31 | . 10 31 Total Orders . | . . . Ally Attacks 3 | . . 3 Total Damage 64 | . . 64 Kills 2 | . . 2 Allies Corrupted . | . . . Allies Melted 1 | . . 1 Intel | -11 -10 -10 ------- Run | Scr Mat Min Robot Analysis Total 1 | . 1 . Derelict Logs Recovered . | . . . Drone Launches . | . . . Drone Recoveries . | . . . Exploration | -11 -10 -10 ------------- Run | Scr Mat Min Turns Passed 1249 | 82 949 218 Spaces Moved 911 | 48 716 147 Core 13 | 13 . . Treads . | . . . Legs 118 | 35 83 . Wheels 780 | . 633 147 Hover . | . . . Flight . | . . . Fastest Speed 50 | 50 95 110 Average Speed 108 | 135 106 110 Slowest Speed 250 | 250 190 110 Overloaded Moves . | . . . Propulsion Burnouts . | . . . Robots Hopped . | . . . Cave-ins Triggered . | . . . Exploration Rate (%) 44 | 3 97 33 Regions Visited 2 Branch Regions 1 Pre-discovered Areas 1 | . 1 . Known Exits Taken . | . . . Unknown Exits Taken 2 | 1 1 . Scrap Searched 1 | . . 1 Spaces Dug . | . . . Terrain Destroyed 80 | . 43 37 Melee . | . . . Projectile . | . . . AOE 80 | . 43 37 Terrain Rammed . | . . . Walls Destroyed . | . . . Machines Disabled . | . . . Actions | -11 -10 -10 --------- Run | Scr Mat Min Total 1075 | 62 835 178 Wait 62 | 2 58 2 Move 909 | 47 715 147 Hop . | . . . Pick Up 22 | 5 14 3 Fast Attach 8 | 7 1 . Attach 5 | . 2 3 Detach 1 | 1 . . Swap 7 | . 3 4 Drop 12 | . 9 3 Fire 49 | . 33 16 Melee . | . . . Ram . | . . . Kick . | . . . Crush . | . . . Escape Stasis . | . . . Rewire . | . . . Trap . | . . . Miscellaneous . | . . . Route ------- -11/Scrapyard -10/Materials (discovered 5 exits: [*Mat x3] / [*Min x2]) -10/Mines History --------- Turn | Location | Event 22 | -11/Scrapyard | Discovered new exit (range 16) 83 | -11/Scrapyard | Entered Materials 226 | -10/Materials | Discovered new exit (range 15) 233 | -10/Materials | Central database locked down 303 | -10/Materials | Build established: Mutant 453 | -10/Materials | Discovered new exit (range 15) 566 | -10/Materials | Discovered new exit (range 14) 775 | -10/Materials | Discovered new exit (range 8) 907 | -10/Materials | Discovered new exit (range 10) 1032 | -10/Materials | Entered Mines 1032 | -10/Mines | Accompanied by 1 ally 1053 | -10/Mines | Found a hidden stash of uninstalled traps 1127 | -10/Mines | A weapon hastily lodged in a ceiling crevice suddenly fell to the ground 1151 | -10/Mines | Assembled infested the area 1213 | -10/Mines | Destroyed 14 combat bots 1237 | -10/Mines | Core integrity fell below 50% 1249 | -10/Mines | Core integrity fell below 20% 1250 | -10/Mines | Destroyed by D-53 Grenadier with Mini Grenade Launcher Last Messages --------------- 01191_ R-06 Scavenger system terminally corrupted. 01192_ System corrupted: FCS attempts to trigger EM Shotgun. 01192_ System corrupted: EM Shotgun misfires. 01192_ as-81508 destroyed. 01198_ Acquired 18 matter. 01199_ Acquired 1 matter. 01201_ Acquired 61 matter. 01204_ The unstable cave ceiling collapses. 01220_ as-65998 destroyed. 01223_ NZLGS<3GJ8RFT Map ----- +----------------------------------------------------+ | ???????????????????????????????????? | | ???????????????????????????????????? | | ???????????????????????????????????? | | ???????????????????????????????????? | | ???????????????????????????????????? | | ??????????????????????##???????????? | | ?????????????????????? ???????????? | | ?????????????????????? ???????????? | | ?????????????????????# ##?????????? | | ?????????????????????# #?????????? | | ?????????????????????# ?????????? | | ????????????????????? ??????????? | | ????????????????????? ??????????? | | ?????????????????????# ??????????? | | ?????????????????????# ??????????? | | ?????????????????????# #??????????? | | ?????????????????????# #??????????? | | ?????????????????????# #??????????? | | ?????????????????????# #??????????? | | ?????#####???????????# &#??????????? | | ?????#[ ######??##??#| #??????????? | | ?????# ### #### %#??????????? | | ?????## ##%[#????## ##? | | ??## ## %## | | ?# % = | | ?# @ #? | | ?# d d ##? | | # r #####?? | | # #### ##?????? | | ?# #?## #??????? | | ?## #??## # # # % $#?????? | | ?## #???######## ### #?????? | | ?# ##??????????## ##??## #?????? | | ?# ###?????????####????? #?????? | | ?## ###???????????????? #?????? | | ??## ##???????????????? #?????? | | ???# ##???????????????? ?????? | | ??## ## #??####????????????????? | | ??# ##?# #### #######??????????? | | ??# #??# ## ##?????????? | | ??## #### ##????????? | | ???## ## #????????? | | ????# #????????? | | ????## ## ### ##????????? | | ?????# #### ##?## #?????????? | | ?????## ##??## ##???# #?????????? | | ??????####????####????# ######????? | | ????????#####?????##### #????? | | ???????## ##????# #### #????? | | ???????# & ##???# ######?????????? | +----------------------------------------------------+ Best States ------------- Heat Dissipation 35 Energy Generation 10 Energy Capacity 250 Matter Stores 300 Matter Capacity 300 Sight Range 16 Terrain Scan Density 10 Armor Coverage 150 Evasion (%) 55 Recoil Reduction 1 Item Schematics ----------------- None Robot Schematics ------------------ None Fabricated ------------ Nothing Alien Tech Used ----------------- None Achievements -------------- None Challenges ------------ None Game ------ Seed ArmageddonSeismicJammer Manual? 0 Play Time 00:21:43 Cumulative 162.8 hours Start 2022.10.07 @ 15:08:12 End 2022.10.07 @ 15:27:41 Sessions 3 Manual Loads 0 Difficulty Rogue Special Mode None Game No. 121 Rogue 121 Adventurer 0 Explorer 0 Win Type - Total 3 Types 3/0/0/0/0/0/0/0/0 Lore% 62 Gallery% 71 Achievement% 58 Wizard Run 0 Options --------- ASCII 0 Keyboard 1 Movement Numpad Keybinds 0 Fullscreen 2 Font 18/Smallcaps Map View 76x50 Tactical HUD 1 Map Filters NONE Filters NONE Steam 1 RUN: 0dd2c8ed-847f-4b41-b75a-4276f85b5470